lending/lending_fUSD_20240816
["ID","MTS","AMOUNT","RATE_DAILY","PERIOD"]
[335050212,1723792244264,-221.485325,0.00016271,2]
[335050213,1723792244275,-221.485325,0.00016271,2]
[335050214,1723792244285,-490.635847,0.00016271,2]
[335050215,1723792244294,-162.169729,0.00016271,2]
[335050216,1723792244304,-490.635847,0.00016271,2]
[335050217,1723792244314,-162.169729,0.00016271,2]
[335050218,1723792244324,-462.069901,0.00016271,2]
[335050219,1723792244333,-462.069903,0.00016271,2]
[335050220,1723792244343,-151.0,0.00016271,2]
[335050221,1723792244352,-708.651822,0.00016271,2]
[335050222,1723792244361,-708.651822,0.00016271,2]
[335050223,1723792244370,-12984.2350894,0.00016271,2]
[335050224,1723792244379,-14723.4549135,0.00016271,2]
[335050225,1723792244389,-28273.6128492,0.00016281,7]
[335050226,1723792244398,-151.0,0.00016281,2]
[335050227,1723792244407,-151.0,0.00016281,2]
[335050228,1723792244416,-158.243369,0.00016281,2]
[335050229,1723792244426,-158.243369,0.00016281,2]
[335050230,1723792244435,-151.0,0.00016281,2]
[335050231,1723792244445,-151.0,0.00016281,2]
[335050232,1723792244454,-151.0,0.00016281,2]
[335050233,1723792244463,-151.0,0.00016281,2]
[335050234,1723792244473,-151.0,0.00016281,2]
[335050235,1723792244482,-162.581501,0.00016281,2]
[335050236,1723792244491,-162.581501,0.00016281,2]
[335050237,1723792244501,-154.782364,0.00016281,2]
[335050238,1723792244510,-151.0,0.00016281,2]
[335050239,1723792244520,-190.326468,0.00016281,2]
[335050240,1723792244529,-151.0,0.00016281,2]
[335050241,1723792244538,-151.0,0.00016281,2]
[335050242,1723792244547,-151.0,0.00016281,2]
[335050243,1723792244557,-151.0,0.00016281,2]
[335050244,1723792244566,-1095.853651,0.00016281,2]
[335050245,1723792244575,-1095.853651,0.00016281,2]
[335050246,1723792244585,-219.319144,0.00016281,2]
[335050247,1723792244594,-219.319144,0.00016281,2]
[335050248,1723792244604,-151.0,0.00016281,2]
[335050249,1723792244614,-298.617588,0.00016281,2]
[335050250,1723792244623,-298.617588,0.00016281,2]
[335050251,1723792244633,-10000.0,0.00016281,2]
[335050252,1723792244642,-10000.0,0.00016281,2]
[335050253,1723792244652,-221.485325,0.00016281,2]
[335050254,1723792244662,-221.485325,0.00016281,2]
[335050255,1723792244672,-490.635847,0.00016281,2]
[335050256,1723792244681,-162.169729,0.00016281,2]
[335050257,1723792244691,-490.635847,0.00016281,2]
[335050258,1723792244701,-162.169729,0.00016281,2]
[335050259,1723792244710,-151.0,0.00016281,2]
[335050260,1723792244720,-708.651822,0.00016281,2]
[335050261,1723792244729,-708.651822,0.00016281,2]
[335050262,1723792244739,-152.62735722,0.00016385,2]
[335050263,1723792244749,-450.0,0.00016438,2]
[335050264,1723792244759,-295.01,0.00016455,2]
[335050265,1723792244768,-567.923631,0.00016986,2]
[335050266,1723792244778,-163.99,0.00017054,2]
[335050267,1723792244787,-790.283252,0.00017183,2]
[335050268,1723792244797,-790.283252,0.00017183,2]
[335050269,1723792244806,-151.0,0.00017183,2]
[335050270,1723792244816,-251.310731,0.00017183,2]
[335050271,1723792244826,-251.310731,0.00017183,2]
[335050272,1723792244835,-445.457127,0.00017183,2]
[335050273,1723792244845,-445.457127,0.00017183,2]
[335050274,1723792244854,-14723.4549135,0.0001722,2]
[335050275,1723792244863,-1095.853651,0.0001723,2]
[335050276,1723792244873,-1095.853651,0.0001723,2]
[335050277,1723792244882,-219.319144,0.0001723,2]
[335050278,1723792244892,-219.319144,0.0001723,2]
[335050279,1723792244901,-151.0,0.0001723,2]
[335050280,1723792244911,-298.617588,0.0001723,2]
[335050281,1723792244921,-298.617588,0.0001723,2]
[335050282,1723792244929,-10000.0,0.0001723,2]
[335050283,1723792244938,-10000.0,0.0001723,2]
[335050284,1723792244948,-221.485325,0.0001723,2]
[335050285,1723792244959,-221.485325,0.0001723,2]
[335050286,1723792244968,-373.5,0.00017238,2]
[335050287,1723792244978,-151.0,0.0001724,2]
[335050288,1723792244988,-151.0,0.0001724,2]
[335050289,1723792244998,-151.0,0.0001724,2]
[335050290,1723792245008,-979.902485,0.0001724,2]
[335050291,1723792245018,-979.902485,0.0001724,2]
[335050292,1723792245027,-151.915282,0.0001724,2]
[335050293,1723792245037,-490.635847,0.0001724,2]
[335050294,1723792245047,-162.169729,0.0001724,2]
[335050295,1723792245056,-490.635839,0.0001724,2]
[335050296,1723792245066,-162.169722,0.0001724,2]
[335050297,1723792245075,-280.458297,0.0001724,2]
[335050298,1723792245084,-708.651822,0.0001724,2]
[335050299,1723792245094,-708.65182,0.0001724,2]
[335050300,1723792245103,-151.0,0.00017241,2]
[335050301,1723792245113,-151.0,0.00017241,2]
[335050302,1723792245123,-151.0,0.00017241,2]
[335050303,1723792245133,-154.71749,0.00017241,2]
[335050304,1723792245143,-151.0,0.00017241,2]
[335050305,1723792245153,-151.0,0.0001725,2]
[335050306,1723792245163,-151.0,0.0001725,2]
[335050307,1723792245172,-151.0,0.0001725,2]
[335050308,1723792245182,-151.0,0.0001725,2]
[335050309,1723792245192,-178.942106,0.0001725,2]
[335050310,1723792245202,-979.902485,0.0001725,2]
[335050311,1723792245212,-979.902485,0.0001725,2]
[335050316,1723792245462,-790.283252,0.0001725,2]
[335050319,1723792245472,-790.283252,0.0001725,2]
[335050321,1723792245481,-254.48892,0.0001725,2]
[335050323,1723792245491,-251.310731,0.0001725,2]
[335050324,1723792245501,-251.310731,0.0001725,2]
[335050325,1723792245510,-445.457127,0.0001725,2]
[335050326,1723792245520,-445.457127,0.0001725,2]
[335050327,1723792245529,-1095.853651,0.00017808,2]
[335050328,1723792245539,-1095.853652,0.00017808,2]
[335050329,1723792245548,-219.319144,0.00017808,2]
[335050330,1723792245558,-219.319151,0.00017808,2]
[335050331,1723792245567,-151.0,0.00017808,2]
[335050332,1723792245578,-298.617588,0.00017808,2]
[335050333,1723792245589,-298.617596,0.00017808,2]
[335050334,1723792245598,-221.485325,0.00017808,2]
[335050335,1723792245609,-221.485323,0.00017808,2]
[335050336,1723792245619,-567.923631,0.00017808,2]
[335050337,1723792245629,-152.62735722,0.00018213,2]
[335050338,1723792245640,-600.0,0.00018514,2]
[335050339,1723792245649,-162.581501,0.00018533,2]
[335050340,1723792245658,-162.581501,0.00018533,2]
[335050341,1723792245667,-1997.2,0.00018533,2]
[335050342,1723792245677,-373.5,0.00019492,2]
[335050343,1723792245686,-500.0,0.00019999,2]
[335050344,1723792245695,-500.0,0.00019999,2]
[335050345,1723792245706,-1007.61906243,0.0002,2]
[335050346,1723792245716,-3300.0,0.0002,2]
[335050347,1723792245726,-152.62735722,0.00020041,2]
[335050348,1723792245736,-260.67,0.00020447,2]
[335050349,1723792245746,-624.61862578,0.00020708,2]
[335050350,1723792245756,-1500.0,0.00020999,2]
[335050351,1723792245765,-194.75826541,0.00021378,4]
[335050352,1723792245775,-373.5,0.00021747,2]
[335050353,1723792245785,-152.62735722,0.0002187,2]
[335050354,1723792245794,-151.0,0.00021918,2]
[335050355,1723792245804,-151.0,0.00021918,2]
[335050356,1723792245813,-151.0,0.00021918,2]
[335050357,1723792245822,-151.0,0.00021918,2]
[335050358,1723792245832,-151.0,0.00021918,2]
[335050359,1723792245841,-152.895099,0.00021918,2]
[335050360,1723792245854,-150.16,0.00021918,2]
[335050361,1723792245864,-151.0,0.00021918,2]
[335050362,1723792245874,-151.0,0.00021918,2]
[335050363,1723792245884,-157.74,0.00021918,2]
[335050364,1723792245894,-2258.0,0.00022,2]
[335050365,1723792245904,-1000.0,0.00022,12]
[335050366,1723792245914,-154.27,0.00022,2]
[335050367,1723792245924,-573.1560957,0.0002203,2]
[335050369,1723792245934,-554.89052305,0.0002203,50]
[335050370,1723792245944,-151.0,0.00022178,7]
[335050371,1723792245955,-151.0,0.00022178,7]
[335050372,1723792245965,-151.0,0.00022178,7]
[335050373,1723792245975,-790.283252,0.00022178,7]
[335050374,1723792245984,-790.283247,0.00022178,7]
[335050375,1723792245994,-251.310731,0.00022178,7]
[335050376,1723792246004,-151.0,0.00022178,7]
[335050377,1723792246014,-251.310726,0.00022178,7]
[335050378,1723792246024,-445.457127,0.00022178,7]
[335050379,1723792246034,-445.457128,0.00022178,7]
[335050380,1723792246044,-151.0,0.00022188,7]
[335050381,1723792246054,-151.0,0.00022188,7]
[335050382,1723792246064,-151.0,0.00022188,7]
[335050383,1723792246076,-151.0,0.00022188,7]
[335050384,1723792246086,-151.0,0.00022188,7]
[335050385,1723792246097,-151.0,0.00022188,7]
[335050386,1723792246106,-979.902485,0.00022188,7]
[335050387,1723792246115,-979.902485,0.00022188,7]
[335050388,1723792246125,-500.0,0.00022191,2]
[335050389,1723792246135,-500.0,0.00022191,2]
[335050390,1723792246144,-230.047842,0.00022198,7]
[335050392,1723792246154,-151.0,0.00022198,7]
[335050393,1723792246163,-158.243369,0.00022198,7]
[335050394,1723792246173,-158.243369,0.00022198,7]
[335050395,1723792246183,-151.0,0.00022198,7]
[335050396,1723792246192,-151.0,0.00022198,7]
[335050397,1723792246203,-151.0,0.00022198,7]
[335050398,1723792246212,-162.581501,0.00022198,7]
[335050399,1723792246222,-162.581501,0.00022198,7]
[335050400,1723792246235,-169.71916577,0.00022464,2]
[335050401,1723792246244,-151.0,0.0002249,7]
[335050402,1723792246254,-151.0,0.0002249,7]
[335050403,1723792246265,-979.902485,0.0002249,7]
[335050404,1723792246276,-979.902485,0.0002249,7]
[335050405,1723792246285,-151.0,0.0002249,7]
[335050406,1723792246295,-151.0,0.0002249,7]
[335050407,1723792246305,-151.0,0.0002249,7]
[335050408,1723792246317,-151.0,0.0002249,7]
[335050409,1723792246327,-150.0,0.00022497,2]
[335050410,1723792246337,-3783.0,0.000225,2]
[335050411,1723792246347,-150.0,0.00022538,2]
[335050412,1723792246357,-150.0,0.00022553,2]
[335050413,1723792246367,-150.0,0.00022565,2]
[335050414,1723792246377,-150.0,0.0002258,2]
[335050415,1723792246386,-150.0,0.0002261,2]
[335050416,1723792246396,-167.0,0.00022632,2]
[335050417,1723792246406,-150.0,0.00022649,2]
[335050418,1723792246416,-1000.0,0.00022714,2]
[335050419,1723792246427,-151.0,0.00022714,7]
[335050420,1723792246437,-151.0,0.00022714,7]
[335050421,1723792246449,-150.0,0.00022714,2]
[335050422,1723792246459,-150.0,0.00022727,2]
[335050423,1723792246469,-150.0,0.00022824,2]
[335050424,1723792246479,-500.0,0.00022835,2]
[335050425,1723792246490,-500.0,0.00022835,2]
[335050426,1723792246500,-500.0,0.00022835,2]
[335050427,1723792246509,-500.0,0.00022835,2]
[335050428,1723792246520,-177.29,0.00022835,2]
[335050429,1723792246530,-500.0,0.00022835,2]
[335050430,1723792246539,-500.0,0.00022835,2]
[335050431,1723792246549,-626.12,0.00022835,2]
[335050432,1723792246559,-500.0,0.00022835,2]
[335050433,1723792246569,-500.0,0.00022835,2]
[335050434,1723792246579,-500.0,0.00022835,2]
[335050435,1723792246590,-334.84,0.00022835,2]
[335050436,1723792246600,-151.0,0.00022835,7]
[335050437,1723792246610,-151.0,0.00022835,7]
[335050438,1723792246620,-151.0,0.00022835,7]
[335050439,1723792246630,-284.142714,0.00022835,7]
[335050440,1723792246640,-150.0,0.00022841,2]
[335050441,1723792246650,-150.0,0.00022847,2]
[335050442,1723792246660,-150.0,0.00022869,2]
[335050443,1723792246670,-150.0,0.00022878,2]
[335050444,1723792246680,-43756.18194634,0.0002288,2]
[335050445,1723792246689,-150.0,0.00022974,2]
[335050446,1723792246699,-151.0,0.0002298,7]
[335050447,1723792246709,-151.0,0.0002298,7]
[335050448,1723792246718,-151.0,0.0002298,7]
[335050449,1723792246728,-151.0,0.0002298,7]
[335050450,1723792246738,-150.0,0.00022985,2]
[335050451,1723792246748,-153.425478,0.0002299,7]
[335050452,1723792246757,-151.0,0.0002299,7]
[335050453,1723792246767,-151.0,0.0002299,7]
[335050454,1723792246776,-162.581501,0.0002299,7]
[335050455,1723792246786,-162.581501,0.0002299,7]
[335050456,1723792246795,-151.0,0.0002299,7]
[335050457,1723792246806,-151.0,0.0002299,7]
[335050458,1723792246816,-979.902485,0.0002299,7]
[335050459,1723792246826,-979.902485,0.0002299,7]
[335050460,1723792246835,-7282.11411984,0.00023,3]
[335050461,1723792246846,-7500.0,0.00023,2]
[335050462,1723792246856,-1000.0,0.00023,12]
[335050463,1723792246866,-150.0,0.00023005,2]
[335050464,1723792246875,-150.0,0.00023046,2]
[335050465,1723792246886,-1500.0,0.00023064,2]
[335050466,1723792246896,-150.0,0.00023065,2]
[335050467,1723792246906,-150.0,0.0002307,2]
[335050468,1723792246918,-866.0,0.000231,2]
[335050469,1723792246927,-150.0,0.00023105,2]
[335050470,1723792246938,-150.0,0.00023108,2]
[335050471,1723792246948,-150.0,0.00023112,2]
[335050472,1723792246957,-150.0,0.00023115,2]
[335050473,1723792246967,-150.0,0.00023131,2]
[335050474,1723792246977,-150.0,0.00023141,2]
[335050475,1723792246988,-150.0,0.00023165,2]
[335050476,1723792246998,-150.0,0.00023177,2]
[335050477,1723792247008,-150.0,0.00023183,2]
[335050478,1723792247018,-150.0,0.00023186,2]
[335050479,1723792247028,-150.0,0.00023194,2]
[335050480,1723792247037,-150.0,0.0002321,2]
[335050481,1723792247047,-150.0,0.00023225,2]
[335050482,1723792247057,-150.0,0.00023227,2]
[335050483,1723792247066,-150.0,0.00023238,2]
[335050484,1723792247076,-151.0,0.00023247,7]
[335050485,1723792247086,-154.449292,0.00023247,7]
[335050486,1723792247097,-151.0,0.00023247,7]
[335050487,1723792247108,-268.015752,0.00023247,7]
[335050488,1723792247118,-151.0,0.00023257,7]
[335050489,1723792247128,-151.0,0.00023257,7]
[335050490,1723792247141,-155.310909,0.00023257,7]
[335050491,1723792247151,-151.0,0.00023257,7]
[335050492,1723792247160,-151.0,0.00023257,7]
[335050493,1723792247170,-253.95776,0.00023257,7]
[335050494,1723792247180,-162.581501,0.00023257,7]
[335050495,1723792247190,-162.581501,0.00023257,7]
[335050496,1723792247200,-151.0,0.00023257,7]
[335050497,1723792247210,-151.0,0.00023257,7]
[335050498,1723792247220,-979.902485,0.00023257,7]
[335050499,1723792247232,-979.902477,0.00023257,7]
[335050500,1723792247242,-150.0,0.00023263,2]
[335050501,1723792247251,-158.243369,0.00023267,7]
[335050502,1723792247261,-158.243369,0.00023267,7]
[335050503,1723792247271,-221.224663,0.00023267,7]
[335050504,1723792247282,-1500.0,0.00023274,2]
[335050505,1723792247291,-151.0,0.00023277,7]
[335050506,1723792247301,-151.0,0.00023277,7]
[335050507,1723792247313,-151.0,0.00023277,7]
[335050508,1723792247323,-151.0,0.00023277,7]
[335050509,1723792247332,-151.0,0.00023277,7]
[335050510,1723792247342,-237.160848,0.00023277,7]
[335050511,1723792247351,-162.581501,0.00023277,7]
[335050512,1723792247362,-162.581501,0.00023277,7]
[335050513,1723792247371,-162.581501,0.00023277,7]
[335050514,1723792247381,-162.581509,0.00023277,7]
[335050515,1723792247391,-1500.0,0.00023277,2]
[335050516,1723792247400,-151.0,0.00023287,7]
[335050517,1723792247410,-151.0,0.00023287,7]
[335050518,1723792247420,-151.0,0.00023287,7]
[335050519,1723792247430,-151.0,0.00023287,7]
[335050520,1723792247439,-158.243369,0.00023287,7]
[335050521,1723792247450,-158.243369,0.00023287,7]
[335050522,1723792247460,-199.790591,0.00023287,7]
[335050523,1723792247470,-151.0,0.00023287,7]
[335050524,1723792247480,-151.0,0.00023287,7]
[335050525,1723792247490,-151.0,0.00023287,7]
[335050526,1723792247499,-151.0,0.00023287,7]
[335050527,1723792247509,-500.0,0.00023287,7]
[335050528,1723792247519,-500.0,0.00023287,7]
[335050529,1723792247529,-500.0,0.00023287,7]
[335050530,1723792247539,-621.73979982,0.00023287,7]
[335050531,1723792247548,-3194.93,0.00023287,7]
[335050532,1723792247558,-3194.93,0.00023287,7]
[335050533,1723792247567,-3194.93,0.00023287,7]
[335050534,1723792247577,-3194.93,0.00023287,7]
[335050535,1723792247587,-3194.93,0.00023287,7]
[335050536,1723792247598,-3194.93,0.00023287,7]
[335050537,1723792247608,-3194.93,0.00023287,7]
[335050538,1723792247617,-5847.05,0.00023287,7]
[335050539,1723792247627,-5847.05,0.00023287,7]
[335050540,1723792247637,-5847.05,0.00023287,7]
[335050541,1723792247646,-5847.05,0.00023287,7]
[335050542,1723792247656,-5847.05,0.00023287,7]
[335050543,1723792247665,-5847.05,0.00023287,7]
[335050544,1723792247675,-5847.05,0.00023287,7]
[335050545,1723792247685,-1000.0,0.00023288,14]
[335050546,1723792247694,-1500.0,0.00023295,2]
[335050547,1723792247704,-150.0,0.00023299,2]
[335050548,1723792247715,-150.0,0.000233,2]
[335050549,1723792247724,-150.0,0.00023308,2]
[335050550,1723792247734,-1000.0,0.0002331,14]
[335050551,1723792247744,-1500.0,0.00023323,2]
[335050552,1723792247753,-1000.0,0.00023332,14]
[335050553,1723792247763,-1000.0,0.00023353,14]
[335050554,1723792247772,-150.0,0.00023359,2]
[335050555,1723792247781,-1500.0,0.00023375,2]
[335050556,1723792247791,-1000.0,0.00023375,14]
[335050557,1723792247799,-150.0,0.00023379,2]
[335050558,1723792247809,-1500.0,0.00023381,2]
[335050559,1723792247819,-150.0,0.0002339,2]
[335050560,1723792247926,-150.0,0.00023394,2]
[335050561,1723792247936,-1000.0,0.00023397,14]
[335050562,1723792247945,-156.18541029,0.000234,2]
[335050563,1723792247956,-150.0,0.00023401,2]
[335050564,1723792247965,-1500.0,0.00023406,2]
[335050565,1723792247975,-1000.0,0.00023419,14]
[335050566,1723792247983,-150.0,0.00023422,2]
[335050567,1723792247993,-1000.0,0.00023441,14]
[335050568,1723792248002,-179.85544557,0.00023447,2]
[335050569,1723792248011,-150.0,0.00023457,2]
[335050570,1723792248021,-150.0,0.00023461,2]
[335050571,1723792248030,-158.243369,0.00023463,7]
[335050572,1723792248039,-158.243369,0.00023463,7]
[335050573,1723792248048,-1000.0,0.00023463,14]
[335050574,1723792248058,-150.0,0.00023473,2]
[335050575,1723792248067,-151.0,0.00023479,7]
[335050576,1723792248077,-151.0,0.00023479,7]
[335050577,1723792248086,-1000.0,0.00023485,14]
[335050578,1723792248096,-151.0,0.00023487,7]
[335050579,1723792248105,-151.0,0.00023487,7]
[335050580,1723792248114,-27921.12670255,0.00023497,31]
[335050581,1723792248123,-169.04153078,0.00023497,31]
[335050582,1723792248133,-150.0,0.000235,2]
[335050583,1723792248142,-150.0,0.000235,2]
[335050584,1723792248152,-150.0,0.00023502,2]
[335050585,1723792248161,-1500.0,0.00023503,2]
[335050586,1723792248170,-1000.0,0.00023507,14]
[335050587,1723792248180,-5003.90545,0.0002352,30]
[335050588,1723792248190,-1000.0,0.00023529,14]
[335050589,1723792248199,-150.0,0.00023533,2]
[335050590,1723792248208,-150.0,0.00023545,2]
[335050591,1723792248218,-151.0,0.0002355,7]
[335050592,1723792248227,-151.0,0.0002355,7]
[335050593,1723792248240,-1000.0,0.00023551,14]
[335050594,1723792248250,-150.0,0.00023555,2]
[335050595,1723792248259,-158.243369,0.0002356,7]
[335050596,1723792248270,-158.243369,0.0002356,7]
[335050597,1723792248279,-3194.93,0.0002356,7]
[335050598,1723792248288,-5847.05,0.0002356,7]
[335050599,1723792248298,-1381.49,0.00023561,7]
[335050600,1723792248307,-4705.67,0.00023561,7]
[335050601,1723792248318,-500.0,0.00023561,7]
[335050602,1723792248327,-500.0,0.00023561,7]
[335050603,1723792248337,-673.75,0.00023561,7]
[335050604,1723792248347,-3646.92,0.00023561,7]
[335050605,1723792248356,-1255.64,0.00023561,7]
[335050606,1723792248365,-545.81,0.00023561,7]
[335050607,1723792248375,-500.0,0.00023561,7]
[335050608,1723792248384,-500.0,0.00023561,7]
[335050609,1723792248393,-923.6,0.00023561,7]
[335050610,1723792248403,-3132.89,0.00023561,7]
[335050611,1723792248412,-500.0,0.00023561,7]
[335050612,1723792248421,-500.0,0.00023561,7]
[335050613,1723792248430,-1897.98,0.00023561,7]
[335050614,1723792248440,-500.0,0.00023561,7]
[335050615,1723792248449,-500.0,0.00023561,7]
[335050616,1723792248459,-500.0,0.00023561,7]
[335050617,1723792248468,-500.0,0.00023561,7]
[335050618,1723792248477,-500.0,0.00023561,7]
[335050619,1723792248486,-1545.78,0.00023561,7]
[335050620,1723792248495,-3733.82,0.00023561,7]
[335050621,1723792248504,-1819.02,0.00023561,7]
[335050622,1723792248513,-743.37,0.00023561,7]
[335050623,1723792248523,-1666.42,0.00023561,7]
[335050624,1723792248532,-500.0,0.00023561,7]
[335050625,1723792248541,-1859.09,0.00023561,7]
[335050626,1723792248550,-2520.87,0.00023561,7]
[335050627,1723792248559,-5546.86,0.00023561,7]
[335050628,1723792248568,-500.0,0.00023561,7]
[335050629,1723792248578,-500.0,0.00023561,7]
[335050630,1723792248587,-500.0,0.00023561,7]
[335050631,1723792248596,-500.0,0.00023561,7]
[335050632,1723792248608,-500.0,0.00023561,7]
[335050633,1723792248617,-500.0,0.00023561,7]
[335050634,1723792248626,-500.0,0.00023561,7]
[335050635,1723792248635,-500.0,0.00023561,7]
[335050636,1723792248644,-500.0,0.00023561,7]
[335050637,1723792248653,-338.73,0.00023561,7]
[335050638,1723792248662,-500.0,0.00023561,7]
[335050639,1723792248671,-500.0,0.00023561,7]
[335050640,1723792248680,-500.0,0.00023561,7]
[335050641,1723792248689,-500.0,0.00023561,7]
[335050642,1723792248699,-500.0,0.00023561,7]
[335050643,1723792248709,-270.21,0.00023561,7]
[335050644,1723792248719,-500.0,0.00023561,7]
[335050645,1723792248728,-248.95089939,0.00023561,7]
[335050646,1723792248738,-151.0,0.00023561,7]
[335050647,1723792248747,-151.0,0.00023561,7]
[335050648,1723792248756,-151.0,0.00023561,7]
[335050649,1723792248765,-151.0,0.00023561,7]
[335050650,1723792248775,-216.692068,0.00023561,7]
[335050651,1723792248784,-558.99003416,0.00023561,7]
[335050652,1723792248793,-158.243369,0.00023561,7]
[335050653,1723792248804,-158.243369,0.00023561,7]
[335050654,1723792248814,-158.243369,0.00023561,7]
[335050655,1723792248823,-158.243369,0.00023561,7]
[335050656,1723792248832,-485.6993547,0.00023561,7]
[335050657,1723792248841,-500.0,0.00023561,7]
[335050658,1723792248851,-500.0,0.00023561,7]
[335050659,1723792248861,-500.0,0.00023561,7]
[335050660,1723792248870,-500.0,0.00023561,7]
[335050661,1723792248879,-500.0,0.00023561,7]
[335050662,1723792248888,-500.0,0.00023561,7]
[335050663,1723792248897,-530.43405355,0.00023561,7]
[335050664,1723792248906,-504.84361295,0.00023561,7]
[335050665,1723792248916,-500.0,0.00023561,7]
[335050666,1723792248925,-500.0,0.00023561,7]
[335050667,1723792248934,-503.0959437,0.00023561,7]
[335050668,1723792248943,-500.0,0.00023561,7]
[335050669,1723792248952,-500.0,0.00023561,7]
[335050670,1723792248961,-502.69064246,0.00023561,7]
[335050671,1723792248970,-500.0,0.00023561,7]
[335050672,1723792248980,-500.0,0.00023561,7]
[335050673,1723792248989,-500.0,0.00023561,7]
[335050674,1723792248998,-500.0,0.00023561,7]
[335050675,1723792249008,-500.0,0.00023561,7]
[335050676,1723792249017,-500.0,0.00023561,7]
[335050677,1723792249026,-500.0,0.00023561,7]
[335050678,1723792249035,-500.0,0.00023561,7]
[335050679,1723792249045,-500.0,0.00023561,7]
[335050680,1723792249054,-500.0,0.00023561,7]
[335050681,1723792249063,-500.0,0.00023561,7]
[335050682,1723792249073,-500.0,0.00023561,7]
[335050683,1723792249082,-500.0,0.00023561,7]
[335050684,1723792249091,-525.23,0.00023561,7]
[335050685,1723792249101,-150.0,0.00023561,7]
[335050686,1723792249110,-699.63,0.00023561,2]
[335050687,1723792249119,-150.0,0.00023561,7]
[335050688,1723792249129,-699.63,0.00023561,2]
[335050689,1723792249138,-699.63,0.00023561,2]
[335050690,1723792249148,-699.63,0.00023561,2]
[335050691,1723792249157,-699.63,0.00023561,2]
[335050692,1723792249166,-699.63,0.00023561,2]
[335050693,1723792249176,-699.63,0.00023561,2]
[335050694,1723792249185,-699.63,0.00023561,2]
[335050695,1723792249195,-500.0,0.00023561,7]
[335050696,1723792249205,-500.0,0.00023561,7]
[335050697,1723792249215,-500.0,0.00023561,7]
[335050698,1723792249225,-500.0,0.00023561,7]
[335050699,1723792249237,-631.6,0.00023561,7]
[335050700,1723792249247,-1019.92471734,0.00023561,20]
[335050701,1723792249256,-1873.51,0.00023561,7]
[335050702,1723792249265,-1873.51,0.00023561,7]
[335050703,1723792249275,-1873.51,0.00023561,7]
[335050704,1723792249283,-1873.51,0.00023561,7]
[335050705,1723792249293,-1873.51,0.00023561,7]
[335050706,1723792249302,-1873.51,0.00023561,7]
[335050707,1723792249311,-1873.51,0.00023561,7]
[335050708,1723792249322,-1873.51,0.00023561,7]
[335050709,1723792249331,-1400.53,0.00023561,7]
[335050710,1723792249340,-1400.53,0.00023561,7]
[335050711,1723792249349,-1400.53,0.00023561,7]
[335050712,1723792249359,-1400.53,0.00023561,7]
[335050713,1723792249368,-1400.53,0.00023561,7]
[335050714,1723792249378,-1400.53,0.00023561,7]
[335050715,1723792249387,-1400.53,0.00023561,7]
[335050716,1723792249396,-1400.53,0.00023561,7]
[335050717,1723792249405,-3879.67,0.00023561,7]
[335050718,1723792249414,-3879.67,0.00023561,7]
[335050719,1723792249423,-3879.67,0.00023561,7]
[335050720,1723792249432,-3879.67,0.00023561,7]
[335050721,1723792249441,-3879.67,0.00023561,7]